bitfinex/quotes_SOLUSD_20240925
["timestamp","ask_amount","ask_price","bid_price","bid_amount"]
[1727274376608,6.5898,151.75,151.7,6.5917]
[1727274376787,6.5898,151.75,151.69,17.79836237]
[1727274376981,0.2464814,151.76,151.69,17.79836237]
[1727274377302,6.8358814,151.76,151.71,6.5914]
[1727274377686,6.5899,151.75,151.71,6.5914]
[1727274378513,6.5918,151.71,151.66,39.79347474]
[1727274378804,6.5918,151.71,151.67,6.5932]
[1727274379107,6.5922,151.7,151.66,16.4838]
[1727274379304,6.5922,151.7,151.65,22.5922]
[1727274379305,8.24068955,151.69,151.64,6.5944]
[1727274379492,6.5924,151.69,151.64,6.5944]
[1727274379905,6.5924,151.69,151.65,6.594]
[1727274380595,16.4761,151.74,151.63,16.4869]
[1727274380596,60.255184,151.72,151.63,16.4869]
[1727274380808,6.5933,151.67,151.63,16.4869]
[1727274381019,1.64869755,151.71,151.63,16.4869]
[1727274381197,6.5928,151.68,151.63,24.40076415]
[1727274381511,6.5928,151.68,151.63,23.0818]
[1727274381688,60.255184,151.72,151.63,23.0818]
[1727274381891,23.776884,151.7,151.6,16.96255614]
[1727274382092,23.776884,151.68,151.6,16.96255614]
[1727274382307,1.64874722,151.67,151.6,16.96255614]
[1727274382889,6.594,151.66,151.61,6.5955]
[1727274383118,1.64872415,151.65,151.61,6.5955]
[1727274383483,8.24292415,151.65,151.6,6.8427814]
[1727274383819,8.24292415,151.65,151.6,0.2464814]
[1727274383820,6.5957,151.62,151.6,0.2464814]
[1727274383988,23.776884,151.64,151.6,0.2464814]
[1727274383989,1.64919402,151.61,151.6,0.2464814]
[1727274384190,6.595,151.63,151.6,0.2464814]
[1727274384700,1.64918526,151.62,151.6,0.2464814]
[1727274385094,6.5958,151.61,151.6,0.2464814]
[1727274385410,20.0,151.64,151.6,0.2464814]
[1727274385411,6.5955,151.62,151.6,0.2464814]
[1727274385997,26.5958,151.61,151.6,0.2464814]
[1727274386390,52.02219063,151.61,151.6,0.2464814]
[1727274386592,102.02219063,151.61,151.6,0.2464814]
[1727274386793,50.374884,151.56,151.55,0.3536138]
[1727274387295,52.02527232,151.56,151.55,0.3536138]
[1727274387499,6.5989,151.54,151.53,0.0713291]
[1727274387706,52.02633501,151.54,151.53,0.0713291]
[1727274388089,52.02633501,151.54,151.51,0.2464814]
[1727274388090,50.376584,151.52,151.51,0.2464814]
[1727274388301,26.6019,151.47,151.46,0.3536138]
[1727274388595,50.378784,151.47,151.46,0.3536138]
[1727274388798,118.10564741,151.47,151.46,0.3536138]
[1727274389034,118.10564741,151.47,151.44,0.0713291]
[1727274389035,26.6028,151.45,151.44,0.0713291]
[1727274389195,100.379684,151.45,151.44,0.0713291]
[1727274389716,50.379684,151.45,151.44,0.0713291]
[1727274390628,52.03117224,151.45,151.44,0.0713291]
[1727274391327,102.03117224,151.45,151.44,0.0713291]
[1727274391525,102.03117224,151.45,151.4,0.2612126]
[1727274391526,50.0,151.43,151.4,0.2612126]
[1727274391819,43.776884,151.41,151.4,0.2612126]
[1727274394123,23.776884,151.41,151.4,0.2612126]
[1727274395602,23.776884,151.45,151.4,0.2612126]
[1727274395802,20.0,151.42,151.4,0.2612126]
[1727274395995,4.8993,151.46,151.4,0.2612126]
[1727274396200,20.0,151.47,151.42,6.6041]
[1727274396622,20.0,151.47,151.41,16.5112]
[1727274396923,21.65119351,151.47,151.41,16.5112]
[1727274397525,23.776884,151.46,151.4,0.2612126]
[1727274397712,20.0,151.43,151.4,0.2612126]
[1727274398029,20.0,151.43,151.41,6.6044]
[1727274398523,20.0,151.43,151.4,23.3786126]
[1727274398715,20.0,151.43,151.41,6.6045]
[1727274398915,13.41445882,151.48,151.4,16.7737126]
[1727274398916,20.0,151.47,151.42,6.6041]
[1727274399114,20.0,151.47,151.43,6.6035]
[1727274399310,20.0,151.47,151.44,6.6032]
[1727274399626,20.0,151.47,151.42,16.5093]
[1727274399801,20.0,151.47,151.44,6.6031]
[1727274400133,20.0,151.47,151.45,16.5068]
[1727274400608,20.0,151.5,151.45,23.1095]
[1727274400927,1.65075614,151.49,151.45,23.1095]
[1727274402223,6.89569927,151.5,151.46,6.6023]
[1727274402413,1.65068052,151.49,151.45,16.5068]
[1727274402605,6.89569927,151.5,151.46,6.6023]
[1727274402807,6.89569927,151.5,151.45,16.5068]
[1727274403000,6.89569927,151.5,151.47,6.6019]
[1727274403803,21.6505832,151.49,151.45,16.5068]
[1727274404026,21.6505832,151.49,151.41,33.0223]
[1727274404330,23.776884,151.48,151.43,6.6033]
[1727274404505,20.0,151.49,151.45,6.6027]
[1727274404906,20.0,151.49,151.44,16.5073]
[1727274405399,20.0,151.49,151.47,6.6016]
[1727274405918,50.0,151.55,151.47,6.6016]
[1727274405919,20.0,151.54,151.47,6.6016]
[1727274406123,43.776884,151.52,151.47,6.6016]
[1727274406628,45.4274927,151.52,151.46,23.1075]
[1727274407834,43.776884,151.52,151.46,23.1075]
[1727274408321,45.4275044,151.52,151.46,23.1075]
[1727274408628,43.776884,151.52,151.46,23.1075]
[1727274409221,43.776884,151.52,151.48,6.6015]
[1727274409418,43.776884,151.52,151.47,6.6019]
[1727274409622,43.776884,151.52,151.49,6.601]
[1727274409821,6.89735985,151.53,151.49,6.601]
[1727274410025,22.7499,151.56,151.49,6.601]
[1727274410328,49.48635972,151.56,151.49,6.601]
[1727274410534,8.5467732,151.56,151.48,16.5032]
[1727274410715,8.5467732,151.56,151.5,6.6005]
[1727274411046,20.0,151.53,151.49,6.6009]
[1727274411339,23.776884,151.52,151.48,23.1046]
[1727274411640,20.0,151.55,151.51,6.5998]
[1727274412226,20.0,151.55,151.52,6.5997]
[1727274412919,6.89645972,151.56,151.53,6.5992]
[1727274413232,6.89645972,151.56,151.54,6.5987]
[1727274413453,1.64976691,151.55,151.53,6.5992]
[1727274413637,6.5982,151.56,151.52,16.4986]
[1727274413814,6.5988,151.55,151.49,23.103]
[1727274414008,6.5988,151.55,151.5,6.6005]
[1727274414321,50.1295008,151.58,151.5,6.6005]
[1727274414322,23.776884,151.54,151.5,6.6005]
[1727274414521,6.5994,151.53,151.49,16.5023]
[1727274414714,30.375884,151.54,151.49,23.1032]
[1727274415337,20.0,151.53,151.46,1.32016821]
[1727274415639,38.14931027,151.53,151.43,6.4149]
[1727274415828,23.776884,151.5,151.44,6.603]
[1727274416020,23.776884,151.48,151.45,23.1097]
[1727274416231,20.0,151.49,151.45,23.1097]
[1727274416415,43.776884,151.49,151.45,23.1097]
[1727274417030,50.378084,151.49,151.44,6.6032]
[1727274417339,6.6016,151.48,151.43,6.4149]
[1727274417531,43.776884,151.49,151.43,6.4149]
[1727274417532,1.65080776,151.47,151.43,6.4149]
[1727274417731,8.25280776,151.47,151.43,6.4149]
[1727274418042,21.65080776,151.47,151.43,6.4149]
[1727274418246,21.65080776,151.47,151.42,6.6038]
[1727274418741,21.65080776,151.47,151.41,31.6995]
[1727274418930,21.65080776,151.47,151.43,6.6035]
[1727274419414,20.0,151.47,151.43,6.6035]
[1727274420340,1.65085261,151.46,151.42,6.6041]
[1727274420840,23.776884,151.49,151.4,0.2612126]
[1727274420841,8.25396203,151.45,151.4,0.2612126]
[1727274421231,6.603,151.45,151.4,0.2612126]
[1727274421431,1.65118148,151.44,151.4,0.2612126]
[1727274421646,6.603,151.45,151.4,0.2612126]
[1727274421970,6.6024,151.46,151.4,6.8661126]
[1727274422243,23.776884,151.47,151.42,6.6037]
[1727274423431,30.378884,151.47,151.42,6.6037]
[1727274424341,26.6016,151.48,151.43,6.6036]
[1727274425041,8.25289082,151.47,151.43,6.6036]
[1727274425248,8.25289082,151.47,151.42,6.6041]
[1727274425751,6.6024,151.46,151.42,6.6041]
[1727274425947,1.65098326,151.45,151.42,6.6041]
[1727274426856,1.65097792,151.46,151.42,6.6041]
[1727274427636,8.25337792,151.46,151.41,23.1154]
[1727274427842,6.6029,151.45,151.41,16.5109]
[1727274428046,23.39661373,151.51,151.43,6.6033]
[1727274428047,23.776884,151.47,151.43,6.6033]
[1727274428251,30.378984,151.47,151.42,6.6037]
[1727274428950,1.65090955,151.46,151.42,6.6037]
[1727274429150,23.776884,151.47,151.41,23.1153]
[1727274429355,23.776884,151.47,151.41,16.5109]
[1727274429545,6.6032,151.45,151.41,16.5109]
[1727274430043,6.6033,151.44,151.41,16.5109]
[1727274430445,23.776884,151.47,151.4,0.2612126]
[1727274430446,1.6511566,151.43,151.4,0.2612126]
[1727274430637,6.6033,151.44,151.4,0.2612126]
[1727274431177,1.6513329,151.43,151.4,0.2612126]
[1727274431528,23.776884,151.45,151.4,0.2612126]
[1727274431734,23.776884,151.42,151.4,0.2612126]
[1727274431930,30.381084,151.42,151.4,0.2612126]
[1727274432151,20.0,151.47,151.4,0.2612126]
[1727274432350,50.0,151.48,151.4,0.2612126]
[1727274432351,20.0,151.43,151.4,6.8661126]
[1727274432542,1.65119581,151.42,151.4,0.2612126]
[1727274432943,20.0,151.47,151.4,0.2612126]
[1727274433152,6.6037,151.43,151.4,0.2612126]
[1727274433457,20.0,151.47,151.4,0.2612126]
[1727274433760,6.6042,151.42,151.4,0.2612126]
[1727274435566,23.776884,151.42,151.4,0.2612126]
[1727274436747,6.6045,151.41,151.4,0.2612126]
[1727274436991,52.03322504,151.41,151.4,0.2612126]
[1727274437733,102.03322504,151.41,151.4,0.2612126]
[1727274438237,20.0,151.41,151.4,0.2612126]
[1727274438433,26.6045,151.41,151.4,0.2612126]
[1727274440354,50.381384,151.41,151.4,0.2612126]
[1727274442047,15.8257,151.45,151.4,0.2612126]
[1727274442347,13.50136542,151.46,151.41,6.6045]
[1727274442547,6.6027,151.46,151.41,6.6045]
[1727274442849,6.6033,151.44,151.4,0.2612126]
[1727274443169,1.65121729,151.43,151.4,0.2612126]
[1727274443364,6.6036,151.44,151.4,0.2612126]
[1727274443664,6.6028,151.45,151.41,6.6044]
[1727274443873,6.6028,151.45,151.4,6.8661126]
[1727274444074,1.65118633,151.47,151.4,6.8661126]
[1727274444367,23.40384251,151.48,151.4,6.8661126]
[1727274444368,6.6029,151.45,151.4,6.8661126]
[1727274444544,6.6029,151.45,151.41,6.6045]
[1727274444869,6.6029,151.45,151.4,6.8661126]
[1727274446050,43.776884,151.46,151.4,0.2612126]
[1727274446259,6.89954251,151.48,151.44,16.508]
[1727274446550,6.6005,151.51,151.46,6.6019]
[1727274446755,14.56138923,151.56,151.45,1.32042328]
[1727274446961,13.4969768,151.53,151.48,6.6013]
[1727274447146,14.56138923,151.56,151.48,6.6013]
[1727274447147,6.5984,151.55,151.51,6.6]
[1727274447352,6.5984,151.55,151.48,55.22833224]
[1727274447546,14.56138923,151.56,151.48,38.4343]
[1727274447770,6.5997,151.53,151.48,45.0355]
[1727274448356,6.6002,151.51,151.48,21.9312]
[1727274448561,20.0,151.55,151.48,21.9312]
[1727274448860,6.5998,151.52,151.48,21.9312]
[1727274450068,6.6003,151.51,151.48,21.9312]
[1727274450275,6.6006,151.5,151.45,23.1093]
[1727274451080,6.6003,151.51,151.46,6.6022]
[1727274451678,23.776884,151.54,151.44,22.8207]
[1727274451679,20.0,151.53,151.48,6.6011]
[1727274451855,20.0,151.53,151.49,6.601]
[1727274452056,0.0909794,151.55,151.5,1.32011702]
[1727274452298,0.0909794,151.55,151.54,6.5989]
[1727274456356,0.0909794,151.55,151.54,7.91830812]
[1727274456582,0.2466281,151.59,151.58,6.5971]
[1727274457389,0.2466281,151.59,151.57,16.4935]
[1727274457580,0.2466281,151.59,151.54,16.4969]
[1727274457759,0.2466281,151.59,151.55,6.5981]
[1727274460381,0.2466281,151.59,151.54,16.4969]
[1727274460785,0.2466281,151.59,151.55,6.5984]
[1727274461166,0.2466281,151.59,151.55,7.9179074]
[1727274461364,0.2466281,151.59,151.54,16.4969]
[1727274461561,6.8434281,151.59,151.54,23.0957]
[1727274461878,6.5973,151.58,151.54,16.4969]
[1727274462680,1.64950772,151.57,151.52,15.47]
[1727274462867,6.5976,151.57,151.52,22.0696]
[1727274463069,6.8434281,151.59,151.54,6.5985]
[1727274463272,6.8434281,151.59,151.54,7.91811124]
[1727274463473,6.8434281,151.59,151.55,6.5981]
[1727274463474,0.2466281,151.59,151.55,6.5981]
[1727274463679,0.2466281,151.59,151.57,6.5974]
[1727274463995,0.2466281,151.59,151.56,1.319478]
[1727274464157,0.2466281,151.59,151.58,7.91647431]
[1727274464575,0.2466281,151.59,151.58,34.74397769]
[1727274464792,0.2466281,151.59,151.58,33.10720338]
[1727274465094,0.2466281,151.64,151.58,48.68838374]
[1727274465469,0.2466281,151.64,151.58,48.16160338]
[1727274465879,0.2466281,151.64,151.61,16.4895]
[1727274466180,6.5954,151.63,151.58,37.8267]
[1727274466380,24.0235121,151.64,151.58,6.2797]
[1727274466785,6.5954,151.62,151.58,6.2797]
[1727274467018,6.8412281,151.64,151.59,7.12427669]
[1727274467565,6.8411281,151.64,151.59,7.12417669]
[1727274467770,6.8411281,151.64,151.59,6.5966]
[1727274468488,6.5953,151.63,151.58,12.8767]
[1727274468664,0.2466281,151.64,151.58,12.8767]
[1727274468665,6.5955,151.62,151.58,6.2797]
[1727274469682,0.2466281,151.64,151.58,6.2797]
[1727274469889,44.0235121,151.64,151.58,6.2797]
[1727274470075,6.5955,151.62,151.58,6.2797]
[1727274470975,24.0235121,151.64,151.57,23.0906]
[1727274471183,6.5959,151.61,151.57,23.0906]
[1727274471793,6.5959,151.61,151.57,16.4932]
[1727274472895,24.0235121,151.64,151.57,16.4932]
[1727274473069,6.5955,151.62,151.57,16.4932]
[1727274473275,6.5955,151.62,151.57,23.0907]
[1727274474171,6.5959,151.61,151.57,23.0907]
[1727274475000,20.0,151.63,151.58,0.52801484]
[1727274475173,1.64905582,151.63,151.57,16.4932]
[1727274475379,28.24435582,151.63,151.58,6.5971]
[1727274475698,6.5955,151.62,151.58,6.5971]
[1727274476073,6.5955,151.62,151.57,16.4932]
[1727274476289,6.5959,151.61,151.57,23.0907]
[1727274477002,6.5959,151.61,151.57,16.4932]
[1727274477201,6.5965,151.6,151.55,6.5981]
[1727274477383,6.5965,151.6,151.55,0.52830346]
[1727274477576,6.5965,151.6,151.56,6.5979]
[1727274477784,6.596,151.61,151.56,6.5979]
[1727274478405,23.776884,151.62,151.56,6.5979]
[1727274478616,23.776884,151.62,151.55,7.12670346]
[1727274478820,6.5967,151.59,151.55,7.12670346]
[1727274479619,23.776884,151.62,151.55,7.12670346]
[1727274479915,6.5968,151.59,151.54,44.8086]
[1727274480397,6.5968,151.59,151.55,7.12688331]
[1727274481108,6.5968,151.59,151.55,6.5984]
[1727274481618,6.5977,151.57,151.54,21.7132]
[1727274481819,6.5972,151.58,151.54,28.3119]
[1727274482393,6.5976,151.57,151.54,21.7132]
[1727274482704,6.5976,151.57,151.54,6.1391]
[1727274483292,40.265984,151.62,151.55,0.52892523]
[1727274483508,6.5964,151.6,151.56,6.5979]
[1727274483717,20.0,151.63,151.57,0.5282208]
[1727274484025,20.0,151.63,151.57,6.5975]
[1727274484200,6.5955,151.62,151.57,23.0908]
[1727274484405,6.5955,151.62,151.58,6.5971]
[1727274484593,6.5963,151.6,151.57,16.4933]
[1727274484994,6.5959,151.61,151.57,23.0908]
[1727274485503,6.5954,151.62,151.58,6.5971]
[1727274486018,6.5959,151.61,151.57,23.0907]
[1727274486518,43.776884,151.63,151.57,16.4933]
[1727274486690,6.5955,151.62,151.58,0.52795597]
[1727274486886,7.14731003,151.64,151.57,15.1856]
[1727274486887,6.5963,151.6,151.57,15.1856]
[1727274487407,21.64923685,151.63,151.57,15.1856]
[1727274487811,6.5957,151.62,151.57,21.7831]
[1727274488113,1.64920143,151.61,151.57,21.7831]
[1727274488295,1.64919727,151.61,151.57,21.7831]
[1727274488495,8.24509727,151.61,151.57,21.7831]
[1727274488712,8.24509727,151.61,151.57,15.1856]
[1727274488892,1.64919727,151.61,151.54,6.1391]
[1727274489214,6.5972,151.58,151.54,6.1391]
[1727274489392,6.5979,151.57,151.54,6.1391]
[1727274489595,6.5979,151.57,151.53,31.8907]
[1727274489596,6.598,151.56,151.53,15.3926]
[1727274490118,6.5989,151.54,151.5,29.6723]
[1727274490303,6.5989,151.54,151.5,23.0718]
[1727274490620,1.64997692,151.53,151.5,29.6724]
[1727274490914,6.5989,151.54,151.5,29.6724]
[1727274491309,6.5985,151.55,151.51,6.6002]
[1727274492096,26.5972,151.58,151.54,6.5988]
[1727274492593,20.0,151.58,151.54,6.5988]
[1727274492991,20.0,151.6,151.54,6.5988]
[1727274493320,6.5972,151.58,151.54,6.5988]
[1727274494701,26.5966,151.6,151.55,6.5982]
[1727274494902,6.5959,151.61,151.56,16.4946]
[1727274495119,6.5959,151.61,151.57,7.12555441]
[1727274495445,0.2466281,151.64,151.56,16.4946]
[1727274495597,6.5967,151.59,151.55,6.5983]
[1727274496105,66.7336281,151.64,151.53,23.0966]
[1727274496106,8.24693829,151.58,151.53,23.0966]
[1727274496706,6.5975,151.58,151.53,23.0966]
[1727274498023,6.5985,151.55,151.51,6.5999]
[1727274498346,6.5986,151.55,151.5,29.672]
[1727274498842,23.776884,151.59,151.51,7.12954194]
[1727274499025,6.5981,151.56,151.52,6.5996]
[1727274499348,6.5976,151.57,151.53,6.5993]
[1727274503116,6.5965,151.6,151.56,6.5977]
[1727274503423,6.596,151.61,151.56,16.4942]
[1727274503641,2.27530851,151.63,151.56,16.4942]
[1727274503642,6.5963,151.6,151.56,23.0921]
[1727274503819,6.5963,151.6,151.56,16.4942]
[1727274504022,6.5976,151.57,151.53,16.4981]
[1727274504245,20.0,151.61,151.53,16.4981]
[1727274504421,6.5979,151.57,151.53,23.0971]
[1727274504816,6.5982,151.56,151.52,6.5996]
[1727274505437,6.5989,151.54,151.5,29.6718]
[1727274505639,6.5989,151.54,151.5,23.0712]
[1727274508046,6.5989,151.54,151.5,29.6717]
[1727274508247,43.776884,151.57,151.51,6.5999]
[1727274508428,16.4936,151.58,151.51,6.5999]
[1727274508636,43.776884,151.57,151.51,6.5999]
[1727274508837,20.0,151.57,151.52,0.52930063]
[1727274509160,0.2466281,151.64,151.52,17.27635224]
[1727274509842,6.5963,151.6,151.55,6.5983]
[1727274510327,6.5963,151.6,151.55,7.12665281]
[1727274510834,6.5985,151.55,151.51,23.1]
[1727274511151,6.5979,151.57,151.53,6.5993]
[1727274511449,22.78885735,151.61,151.53,6.5993]
[1727274511450,6.5972,151.58,151.53,6.5993]
[1727274512857,25.42645301,151.57,151.51,16.4999]
[1727274513147,25.42645301,151.57,151.51,23.62903557]
[1727274513148,6.598,151.56,151.51,23.62903557]
[1727274513647,6.5992,151.54,151.5,6.5704]
[1727274514455,6.5992,151.54,151.5,13.70068843]
[1727274514647,6.5985,151.55,151.51,6.6001]
[1727274515020,6.5985,151.55,151.51,7.12953581]
[1727274515627,6.5985,151.55,151.51,6.6001]
[1727274517541,23.39042045,151.59,151.5,23.0716]
[1727274517847,6.5981,151.56,151.52,6.5996]
[1727274518230,6.5984,151.55,151.51,6.6002]
[1727274518430,8.24901265,151.54,151.5,23.0716]
[1727274518650,1.64997829,151.53,151.5,23.0716]
[1727274518850,6.5992,151.54,151.5,23.0716]
[1727274519347,6.5996,151.53,151.5,6.5704]
[1727274519661,6.6,151.52,151.49,15.0335]
[1727274520242,6.6003,151.51,151.49,15.0335]
[1727274520548,6.601,151.5,151.48,0.2466281]
[1727274520929,16.4968,151.55,151.48,0.2466281]
[1727274521127,20.0,151.52,151.49,0.52997152]
[1727274521347,6.5997,151.53,151.49,7.13097152]
[1727274521528,20.0,151.56,151.49,0.52997152]
[1727274521728,20.0,151.56,151.48,33.49687971]
[1727274522135,6.5992,151.54,151.5,6.6006]
[1727274522452,20.0,151.56,151.48,16.7498281]
[1727274522752,6.599,151.54,151.5,6.6004]
[1727274523127,6.599,151.54,151.51,0.52953803]
[1727274523530,6.599,151.54,151.5,6.6004]
[1727274523733,20.0,151.56,151.48,16.7498281]
[1727274523960,26.5981,151.56,151.52,6.5997]
[1727274524249,6.5985,151.55,151.51,6.6]
[1727274525348,6.5996,151.53,151.48,6.8478281]
[1727274525524,6.5996,151.53,151.49,6.6009]
[1727274525947,6.5996,151.53,151.5,0.52989618]
[1727274526143,6.5996,151.53,151.49,7.13070964]
[1727274526725,6.5996,151.53,151.49,6.6009]
[1727274527932,6.5996,151.53,151.48,0.2466281]
[1727274528133,6.5996,151.53,151.48,6.8478281]
[1727274528638,6.5996,151.53,151.49,7.13100776]
[1727274529452,6.5996,151.53,151.49,6.601]
[1727274529756,20.0,151.56,151.5,0.52989715]
[1727274529945,6.5989,151.54,151.5,7.13039715]
[1727274530138,6.5985,151.55,151.51,6.6002]
[1727274530540,6.5985,151.55,151.5,6.6005]
[1727274530744,6.5985,151.55,151.51,7.12959767]
[1727274530938,6.5985,151.55,151.51,6.6001]
[1727274531335,6.5989,151.54,151.5,6.6006]
[1727274532243,6.5985,151.55,151.51,0.5295222]
[1727274532437,6.5985,151.55,151.5,6.6006]
[1727274532934,6.5989,151.54,151.5,6.6006]
[1727274533155,6.5989,151.54,151.51,0.52952728]
[1727274533448,20.0,151.56,151.49,16.5021]
[1727274533653,1.65005113,151.55,151.49,16.5021]
[1727274533843,23.776884,151.55,151.49,16.5021]
[1727274534036,20.0,151.56,151.49,16.5021]
[1727274534254,1.64993111,151.55,151.49,16.5021]
[1727274534459,6.5993,151.53,151.49,23.103]
[1727274536268,1.64993111,151.55,151.49,23.103]
[1727274536269,1.64993111,151.55,151.49,16.5021]
[1727274536466,6.5999,151.52,151.48,6.8480281]
[1727274538660,6.5994,151.53,151.49,6.6007]
[1727274538836,20.0,151.56,151.49,0.52999198]
[1727274539460,20.0,151.54,151.5,6.6005]
[1727274539969,6.6002,151.51,151.48,16.7501281]
[1727274540268,1.65006832,151.5,151.48,0.2466281]
[1727274540443,6.601,151.49,151.48,0.2466281]
[1727274542260,6.89719637,151.53,151.48,0.2466281]
[1727274542443,20.0,151.52,151.48,0.2466281]
[1727274542644,26.5998,151.52,151.48,0.2466281]
[1727274542844,6.6002,151.51,151.48,0.2466281]
[1727274543365,6.6007,151.5,151.48,0.2466281]
[1727274544170,8.25125139,151.49,151.48,0.2466281]
[1727274544373,6.601,151.49,151.48,0.2466281]
[1727274544579,30.377884,151.49,151.48,0.2466281]
[1727274544947,52.02853695,151.49,151.48,0.2466281]
[1727274545146,50.377884,151.49,151.48,0.2466281]
[1727274546456,26.601,151.49,151.48,0.2466281]
[1727274547688,50.377884,151.49,151.48,0.2466281]
[1727274547880,52.02877946,151.49,151.48,0.2466281]
[1727274548761,50.377884,151.49,151.48,0.2466281]
[1727274549685,50.380084,151.44,151.41,0.0586152]
[1727274553286,6.6032,151.44,151.41,0.0586152]
[1727274553506,43.776884,151.46,151.41,0.0586152]
[1727274553672,13.49127566,151.45,151.41,6.6631152]
[1727274553871,43.776884,151.46,151.41,6.6631152]
[1727274553872,30.379584,151.46,151.41,6.6631152]
[1727274554078,30.379584,151.46,151.41,7.19495255]
[1727274554397,6.603,151.45,151.41,7.19495255]
[1727274555491,26.6018,151.48,151.43,7.38197871]
[1727274555700,26.6018,151.48,151.43,7.38217871]
[1727274555701,6.6022,151.47,151.43,7.38217871]
[1727274555874,6.6022,151.47,151.43,0.77857871]
[1727274556273,6.6022,151.47,151.43,7.38227871]
[1727274557191,6.6022,151.47,151.43,0.77857871]
[1727274557396,6.6022,151.47,151.43,0.2466281]
[1727274557795,6.6024,151.46,151.43,0.2466281]
[1727274558306,6.6032,151.45,151.43,0.2466281]
[1727274558778,6.6032,151.44,151.43,0.2466281]
[1727274558974,6.6028,151.45,151.43,0.2466281]
[1727274559179,6.6032,151.44,151.43,0.2466281]
[1727274561681,30.380084,151.44,151.43,0.2466281]
[1727274561901,6.6032,151.44,151.43,0.2466281]
[1727274563410,6.6029,151.45,151.43,0.2466281]
[1727274563711,20.0,151.49,151.43,0.2466281]
[1727274564215,6.6021,151.47,151.43,6.8502281]
[1727274564413,6.6015,151.48,151.44,6.6032]
[1727274564643,26.6012,151.49,151.45,7.13385696]
[1727274564801,6.6008,151.5,151.46,6.6023]
[1727274565223,6.6014,151.49,151.45,0.53105696]
[1727274565387,6.6014,151.49,151.45,7.13365696]
[1727274565794,6.6003,151.51,151.47,6.6019]
[1727274566219,20.0,151.5,151.47,6.6019]
[1727274566398,20.0,151.5,151.46,6.6023]
[1727274566598,6.6007,151.5,151.47,0.53051894]
[1727274566899,6.6007,151.5,151.45,6.6027]
[1727274567418,6.6007,151.5,151.45,7.13356085]
[1727274567602,6.6011,151.49,151.45,7.13356085]
[1727274568122,6.6011,151.49,151.45,0.53086085]
[1727274569131,6.6017,151.48,151.45,0.53086085]
[1727274569299,6.6012,151.49,151.45,0.53086085]
[1727274570135,6.6012,151.49,151.45,7.13346085]
[1727274570309,23.776884,151.52,151.45,0.53086085]
[1727274570517,6.6003,151.51,151.46,23.1078]
[1727274570823,6.6007,151.5,151.46,23.1078]
[1727274571317,23.776884,151.52,151.46,16.5056]
[1727274571524,6.6018,151.48,151.44,22.9028]
[1727274571828,6.6018,151.48,151.44,23.43402251]
[1727274572328,6.6021,151.47,151.44,22.9028]
[1727274575248,6.6018,151.48,151.44,22.9028]
[1727274575713,6.602,151.47,151.44,22.9028]
[1727274578632,40.279084,151.5,151.44,22.9028]
[1727274578844,6.6024,151.46,151.44,22.9028]
[1727274579360,6.6032,151.44,151.43,0.2466281]
[1727274579674,20.0,151.46,151.43,6.8502281]
[1727274579817,20.0,151.46,151.43,0.2466281]
[1727274580020,20.0,151.46,151.43,0.77815751]
[1727274580214,6.6027,151.46,151.43,0.2466281]
[1727274580430,20.0,151.49,151.43,0.2466281]
[1727274580630,6.6028,151.45,151.43,0.2466281]
[1727274580933,20.0,151.49,151.43,0.2466281]
[1727274580934,6.6025,151.46,151.43,0.2466281]
[1727274581151,6.6019,151.47,151.43,7.38187041]
[1727274583227,6.6019,151.47,151.43,6.8502281]
[1727274584356,6.6019,151.47,151.43,7.38174607]
[1727274584556,20.0,151.49,151.43,0.2466281]
[1727274584759,6.6031,151.45,151.43,0.2466281]
[1727274586955,6.6032,151.44,151.43,0.2466281]
[1727274588853,26.6032,151.44,151.43,0.2466281]
[1727274589053,50.380084,151.44,151.43,0.2466281]
[1727274593163,52.03123786,151.44,151.43,0.2466281]
[1727274593537,50.380084,151.44,151.43,0.2466281]